fUST/lending_fUST_20260216
["ID","MTS","AMOUNT","RATE_DAILY","PERIOD"]
[405610595,1771224639912,-1040.51289082,0.000179,2]
[405610596,1771224639920,-1040.5128908,0.000179,2]
[405610597,1771224639929,-1040.5128908,0.000179,2]
[405610598,1771224639938,-1040.5128908,0.000179,2]
[405610599,1771224639948,-151.0,0.000179,2]
[405610600,1771224639957,-151.0,0.000179,2]
[405610601,1771224639966,-300.0,0.00017918,2]
[405610602,1771224639976,-300.0,0.00017918,2]
[405610603,1771224639985,-300.0,0.00017918,2]
[405610604,1771224639994,-300.0,0.00017918,2]
[405610605,1771224640003,-300.0,0.00017918,2]
[405610606,1771224640013,-300.0,0.00017918,2]
[405610607,1771224640022,-300.0,0.00017918,2]
[405610608,1771224640031,-300.0,0.00017918,2]
[405610609,1771224640041,-300.0,0.00017918,2]
[405610610,1771224640051,-300.0,0.00017918,2]
[405610611,1771224640060,-300.0,0.00017918,2]
[405610612,1771224640069,-300.0,0.00017918,2]
[405610613,1771224640079,-300.0,0.00017918,2]
[405610614,1771224640088,-300.0,0.00017918,2]
[405610615,1771224640097,-300.0,0.00017918,2]
[405610616,1771224640107,-600.0,0.00017918,2]
[405610617,1771224640116,-420.0,0.0001796,2]
[405610618,1771224640125,-409.0,0.0001796,2]
[405610619,1771224640135,-420.0,0.0001796,2]
[405610620,1771224640145,-304.0,0.0001796,2]
[405610621,1771224640156,-168.0,0.0001799,2]
[405610622,1771224640169,-40105.41556492,0.00017999,2]
[405610623,1771224640187,-1011.22103213,0.00018,2]
[405610624,1771224640196,-269041.34365097,0.00018,2]
[405610625,1771224640205,-401.92764995,0.00018,2]
[405610626,1771224640214,-281.0,0.00018,2]
[405610627,1771224640226,-8318.60563299,0.00018,2]
[405610628,1771224640236,-151.0,0.00018,2]
[405610629,1771224640246,-168.0,0.00018,2]
[405610630,1771224640256,-168.0,0.00018001,2]
[405610631,1771224640266,-1680.0,0.0001805,2]
[405610632,1771224640275,-168.0,0.00018051,2]
[405610633,1771224640285,-205.0,0.00018078,2]
[405610634,1771224640294,-500.0,0.00018082,2]
[405610635,1771224640303,-775.41,0.00018082,2]
[405610636,1771224640313,-280.034229,0.00018085,2]
[405610637,1771224640323,-205843.78136044,0.00018088,2]
[405610638,1771224640332,-2388.26,0.00018088,2]
[405610639,1771224640341,-730.72,0.00018088,2]
[405610640,1771224640351,-5101.81,0.00018089,2]
[405610641,1771224640360,-500.0,0.0001809,2]
[405610642,1771224640368,-517.62917153,0.00018093,2]
[405610643,1771224640378,-1000.0,0.00018093,2]
[405610644,1771224640388,-1000.0,0.00018093,2]
[405610645,1771224640397,-668.4,0.00018093,2]
[405610646,1771224640406,-2714.03,0.00018093,2]
[405610647,1771224640416,-1393.42,0.00018093,2]
[405610648,1771224640426,-500.0,0.00018093,2]
[405610649,1771224640435,-419.39333469,0.00018093,2]
[405610650,1771224640444,-621.62,0.00018093,2]
[405610651,1771224640454,-500.0,0.00018093,2]
[405610652,1771224640463,-293.91690594,0.00018093,2]
[405610653,1771224640472,-262.20677028,0.00018093,2]
[405610654,1771224640486,-237.79322972,0.00018093,2]
[405610655,1771224640494,-213.18556548,0.00018093,2]
[405610656,1771224640556,-147.75160878,0.00018093,2]
[405610657,1771224640566,-500.0,0.00018093,2]
[405610658,1771224640576,-151.0,0.000181,2]
[405610659,1771224640585,-500.0,0.000181,2]
[405610660,1771224640594,-4127.45,0.0001811,2]
[405610661,1771224640604,-2001.9,0.00018119,2]
[405610662,1771224640613,-500.0,0.00018119,2]
[405610663,1771224640622,-767.57,0.00018119,2]
[405610664,1771224640631,-653.65,0.00018119,2]
[405610665,1771224640641,-500.0,0.00018121,2]
[405610666,1771224640650,-500.0,0.00018127,2]
[405610667,1771224640660,-500.0,0.00018127,2]
[405610668,1771224640669,-743.355046,0.00018135,2]
[405610669,1771224640678,-168.0,0.00018142,2]
[405610670,1771224640687,-168.0,0.0001815,2]
[405610671,1771224640696,-168.0,0.00018159,2]
[405610672,1771224640705,-500.0,0.00018181,2]
[405610673,1771224640714,-151.0,0.000182,2]
[405610674,1771224640723,-680.22031862,0.00018204,2]
[405610675,1771224640733,-635.40586979,0.00018204,2]
[405610676,1771224640742,-168.0,0.00018251,2]
[405610677,1771224640751,-117361.34133966,0.00018271,2]
[405610714,1771224643214,-987.0,0.00016475,2]
[405610715,1771224643225,-987.0,0.00016749,2]
[405610717,1771224643234,-206.54638621,0.00017023,2]
[405610719,1771224643246,-780.45361379,0.00017023,2]
[405610720,1771224643256,-987.0,0.00017297,2]
[405610721,1771224643266,-987.0,0.00017571,2]
[405610722,1771224643275,-987.0,0.00017845,2]
[405610723,1771224643284,-444.64751879,0.00018119,2]
[405610740,1771224645750,-542.35248121,0.00018119,2]
[405610741,1771224645761,-38858.41427879,0.00018271,2]
[405610745,1771224886112,189.68432623,0.00015,4]
[405610867,1771225536061,-652.69044532,0.00015324,2]
[405610875,1771225629229,-1167.03880881,0.00015147,2]
[405610876,1771225630112,-1032.93905023,0.00015147,2]
[405610881,1771225641572,500.0,0.00013588,2]
[405610882,1771225643539,500.0,0.00014345,2]
[405610883,1771225648060,500.0,0.00013141,2]
[405610884,1771225648130,500.0,0.00013644,2]
[405610885,1771225648464,500.0,0.00014442,2]
[405610886,1771225648608,500.0,0.00014515,2]
[405610897,1771225746109,-500.0,0.00015075,2]
[405610898,1771225746259,-231.82028098,0.00015111,2]
[405610899,1771225746284,-985.89371504,0.00015147,2]
[405610900,1771225746303,-198.63,0.000153,2]
[405610901,1771225746325,-500.0,0.00015364,2]
[405610902,1771225746345,-2962.6949645,0.00015479,2]
[405610903,1771225746364,-324.91503606,0.00015605,2]
[405610904,1771225747100,-175.08496394,0.00015605,2]
[405610905,1771225747120,-272.32249331,0.00015912,2]
[405610906,1771225747141,-221.90236218,0.00015956,2]
[405610908,1771225758109,-278.09763782,0.00015956,2]
[405610909,1771225758133,-360.40105631,0.00016012,2]
[405610910,1771225773111,-291.59894369,0.00016012,2]
[405610923,1771225831690,-1703.48550414,0.00016244,2]
[405610924,1771225831703,-347.08741597,0.00016244,2]
[405610925,1771225831713,-300.0,0.00016344,2]
[405610926,1771225831724,-127.06058613,0.00016344,2]
[405610927,1771225831761,-530.93941387,0.00016344,2]
[405610928,1771225831770,-4094.04361413,0.00016345,2]
[405610940,1771225837853,-145.05579798,0.00016345,2]
[405610942,1771225837863,-300.0,0.00016436,2]
[405610944,1771225837873,-867.0,0.00016436,2]
[405610946,1771225837883,-500.0,0.00016437,2]
[405610948,1771225837893,-500.0,0.00016437,2]
[405610950,1771225837902,-500.0,0.00016437,2]
[405610952,1771225837911,-487.98543336,0.00016437,2]
[405610954,1771225837920,-500.0,0.00016437,2]
[405610956,1771225837929,-500.0,0.00016437,2]
[405610958,1771225837939,-500.0,0.00016437,2]
[405610960,1771225837948,-258.06496074,0.00016437,2]
[405610962,1771225837957,-224.51760742,0.00016438,2]
[405611317,1771225843074,-552.23635093,0.00016438,2]
[405620356,1771225938277,500.0,0.00012946,2]
[405620392,1771225938762,500.0,0.00013006,2]
[405620444,1771225939255,500.0,0.00013794,2]
[405620498,1771225939774,500.0,0.00014431,2]
[405620550,1771225940261,500.0,0.00014621,2]
[405620599,1771225940737,500.0,0.00014911,2]
[405622826,1771226037977,687.86397545,0.00015,2]
[405622835,1771226238970,500.0,0.00012887,2]
[405622836,1771226239481,500.0,0.00012923,2]
[405622837,1771226239965,500.0,0.00013117,2]
[405622838,1771226240464,500.0,0.00013627,2]
[405622839,1771226240950,500.0,0.00014038,2]
[405622840,1771226244410,500.0,0.00013055,2]
[405622841,1771226244938,500.0,0.00013543,2]
[405622842,1771226245415,500.0,0.0001436,2]
[405622843,1771226248299,500.0,0.00012928,2]
[405622844,1771226248805,500.0,0.00013013,2]
[405622845,1771226249382,500.0,0.00013395,2]
[405622856,1771226540762,500.0,0.00012842,2]
[405622857,1771226541263,500.0,0.00013567,2]
[405622858,1771226541768,500.0,0.00013872,2]
[405622859,1771226542262,500.0,0.00014247,2]
[405622860,1771226549731,500.0,0.00014373,2]
[405622861,1771226552418,500.0,0.00013219,2]
[405622862,1771226552943,500.0,0.00013307,2]
[405622863,1771226553424,500.0,0.00014469,2]
[405622864,1771226553453,500.0,0.00014983,2]
[405622865,1771226554029,500.0,0.00014666,2]
[405622866,1771226554368,500.0,0.00014858,2]
[405622869,1771226583657,688.75762743,0.00015,2]
[405622968,1771226713835,729.65121378,0.00015,2]
[405622971,1771226749126,-500.0,0.00015084,2]
[405622972,1771226749152,-196.87843625,0.00015127,2]
[405622973,1771226750497,4408.47250524,0.00015,2]
[405622993,1771226827086,-35.70989111,0.00015127,2]
[405622994,1771226827108,-749.97352784,0.00015195,2]
[405623000,1771226837405,673.58898559,0.00015,2]
[405623001,1771226838118,500.0,0.00014127,2]
[405623002,1771226838616,500.0,0.00014331,2]
[405623003,1771226839133,500.0,0.00014724,2]
[405623006,1771226842109,-117.02647216,0.00015195,2]
[405623007,1771226842131,-300.0,0.00015195,2]
[405623008,1771226842150,-300.0,0.00015195,2]
[405623009,1771226842176,-500.0,0.00015196,2]
[405623010,1771226842199,-195.34055119,0.00015196,2]
[405623011,1771226842223,-65.02558756,0.00015196,2]
[405623013,1771226850168,500.0,0.00014532,2]
[405623014,1771226851078,-320.39473548,0.00015196,2]
[405623017,1771226888202,5000.0,0.00015,2]
[405623027,1771226946124,-300.0,0.00015195,2]
[405623028,1771226946151,-114.57967696,0.00015196,2]
[405623029,1771226946176,-500.0,0.00015196,2]
[405623030,1771226946211,-500.0,0.00015196,2]
[405623031,1771226946238,-500.0,0.00015196,2]
[405623032,1771226946266,-487.98543336,0.00015196,2]
[405623033,1771226946294,-500.0,0.00015196,2]
[405623034,1771226946321,-582.25846467,0.00015196,2]
[405623035,1771226946342,-22361.8683471,0.00015197,2]
[405623036,1771226946364,-500.0,0.00015265,2]
[405623037,1771226946384,-374.553996,0.0001533,2]
[405623038,1771226946406,-3727.34396037,0.000154,2]
[405623039,1771226946428,-500.0,0.00015498,2]
[405623040,1771226946465,-300.0,0.000155,2]
[405623041,1771226946510,-300.0,0.000155,2]
[405623042,1771226946539,-300.0,0.000155,2]
[405623043,1771226946565,-300.0,0.000155,2]
[405623044,1771226946590,-300.0,0.000155,2]
[405623045,1771226946616,-300.0,0.000155,2]
[405623046,1771226946641,-300.0,0.000155,2]
[405623047,1771226946666,-300.0,0.000155,2]
[405623048,1771226946694,-300.0,0.000155,2]
[405623049,1771226946721,-300.0,0.000155,2]
[405623050,1771226946749,-300.0,0.000155,2]
[405623051,1771226946775,-300.0,0.000155,2]
[405623052,1771226946803,-300.0,0.000155,2]
[405623053,1771226946828,-300.0,0.000155,2]
[405623054,1771226946854,-300.0,0.000155,2]
[405623055,1771226946876,-500.0,0.00015553,2]
[405623056,1771226946905,-600.0,0.00015809,2]
[405623057,1771226946927,-270.12774819,0.000161,2]
[405623058,1771226946949,-500.0,0.00016116,2]
[405623059,1771226946968,-150.0,0.00016166,2]
[405623060,1771226947121,-962.69503328,0.00016198,2]
[405623061,1771226959071,-500.0,0.00015196,2]
[405623062,1771226959092,-99.08637032,0.00016198,2]
[405623070,1771227017135,25.17362968,0.00013273,2]
[405623071,1771227017155,474.82637032,0.00013273,2]
[405623072,1771227017188,179.99076507,0.00013821,2]
[405623073,1771227017215,820.00923493,0.00013821,2]
[405623074,1771227017264,1500.0,0.00014368,2]
[405623075,1771227017309,1380.90364492,0.00014916,2]
[405623076,1771227018811,500.0,0.00013699,2]
[405623077,1771227018845,680.88266684,0.00014247,2]
[405623282,1771227039210,-336.00839522,0.00016171,2]
[405623409,1771227040429,-655.82045466,0.00016171,2]
[405623411,1771227040439,-500.0,0.00016203,2]
[405623413,1771227040448,-227.93656081,0.00016212,2]
[405623415,1771227040459,-168.96452558,0.00016221,2]
[405623417,1771227040468,-300.0,0.00016437,2]
[405623419,1771227040478,-549.24,0.00016438,2]
[405623421,1771227040487,-1000.0,0.00016438,2]
[405623423,1771227040496,-1698.03845895,0.00016438,2]
[405623425,1771227040507,-722.63527412,0.00016438,2]
[405623734,1771227046107,-1193.10626693,0.00016438,2]
[405623735,1771227046117,-1000.0,0.00016438,2]
[405623736,1771227046127,-500.0,0.00016438,2]
[405623737,1771227046138,-154.91616902,0.00016438,2]
[405623738,1771227046148,-151.52927972,0.00016438,2]
[405623739,1771227046158,-1734.47,0.00016438,2]
[405623740,1771227046167,-1418.01,0.00016438,2]
[405623741,1771227046177,-500.0,0.00016438,2]
[405623742,1771227046188,-543.7,0.00016438,2]
[405623743,1771227046198,-500.0,0.00016438,2]
[405623744,1771227046207,-500.0,0.00016438,2]
[405623745,1771227046217,-1934.8117204,0.00016438,2]
[405623757,1771227070006,500.0,0.00013273,2]
[405623758,1771227070060,466.46367224,0.00013821,2]
[405623759,1771227100159,-300.0,0.00016437,2]
[405623760,1771227100191,-179.97498955,0.00016438,2]
[405623761,1771227129885,500.0,0.00013273,2]
[405623762,1771227129938,1000.0,0.00013821,2]
[405623763,1771227129996,1500.0,0.00014368,2]
[405623764,1771227130098,2000.0,0.00014916,2]
[405623765,1771227138087,500.0,0.0001438,2]
[405623766,1771227138136,905.2828599,0.00014625,2]
[405623767,1771227138628,500.0,0.0001487,2]
[405623770,1771227149157,293.85068442,0.00012804,2]
[405623771,1771227149522,500.0,0.00013984,2]
[405623791,1771227316742,300.0,0.00013673,2]
[405623792,1771227316802,600.0,0.00014221,2]
[405623793,1771227316856,900.0,0.00014768,2]
[405623794,1771227320237,427.71762635,0.00013273,2]
[405623796,1771227340832,500.0,0.00013699,2]
[405623797,1771227340884,1000.0,0.00014247,2]
[405623798,1771227340943,1107.47987705,0.00014795,2]
[405623801,1771227352242,500.0,0.00013273,2]
[405623802,1771227352294,1000.0,0.00013821,2]
[405623803,1771227352365,1500.0,0.00014368,2]
[405623804,1771227352400,546.48398893,0.00014916,2]
[405623838,1771227442868,500.0,0.00013026,2]
[405623839,1771227443182,500.0,0.00013459,2]
[405623840,1771227443793,629.42645937,0.00013696,2]
[405623847,1771227609962,500.0,0.00013273,2]
[405623848,1771227610014,1000.0,0.00013821,2]
[405623849,1771227610064,1500.0,0.00014368,2]
[405623850,1771227610123,2000.0,0.00014916,2]
[405623855,1771227724953,500.0,0.00013273,2]
[405623856,1771227725006,1000.0,0.00013821,2]
[405623857,1771227725069,701.03217182,0.00014368,2]
[405623859,1771227738263,500.0,0.00013667,2]
[405623860,1771227738756,500.0,0.00013692,2]
[405623862,1771227750720,500.0,0.00014454,2]
[405623891,1771227938090,-705.3106652,0.00015082,2]
[405623892,1771227938113,-234.19720388,0.00015134,2]
[405623893,1771227938133,-291.3552319,0.00015186,2]
[405623894,1771227938154,-512.36413722,0.00015196,2]
[405623895,1771227938174,-184.52713859,0.00015251,2]
[405623896,1771227938194,-77.02782972,0.00015446,2]
[405623905,1771228028110,-112.94929658,0.00015446,2]
[405623906,1771228028136,-500.0,0.00015838,2]
[405623907,1771228028177,-524.28999087,0.0001605,2]
[405623908,1771228043074,-584.45988754,0.0001605,2]
[405623909,1771228047476,500.0,0.0001421,2]
[405623910,1771228049148,500.0,0.00013138,2]
[405623912,1771228053093,-500.0,0.00015877,2]
[405623913,1771228053119,-659.21723589,0.0001605,2]
[405623931,1771228149071,-547.88659723,0.0001605,2]
[405623935,1771228152093,-652.75678012,0.0001605,2]
[405623993,1771228238366,-921.72428925,0.0001605,2]
[405623995,1771228238376,-182.9692035,0.00016139,2]
[405623997,1771228238386,-329.06262604,0.00016316,2]
[405624000,1771228238396,-194.13088274,0.00016319,2]
[405624002,1771228238406,-349.08615334,0.00016319,2]
[405624004,1771228238415,-4019.0412742,0.00016338,2]
[405624006,1771228238426,-292.0,0.00016427,2]
[405624008,1771228238435,-1271.7929513,0.00016428,2]
[405624010,1771228238447,-1572.61386357,0.00016428,2]
[405624012,1771228238456,-300.0,0.00016428,2]
[405624014,1771228238466,-300.0,0.00016428,2]
[405624016,1771228238476,-300.0,0.00016428,2]
[405624018,1771228238486,-300.0,0.00016428,2]
[405624020,1771228238495,-500.0,0.00016428,2]
[405624022,1771228238504,-500.0,0.00016428,2]
[405624024,1771228238513,-500.0,0.00016428,2]
[405624026,1771228238523,-500.0,0.00016428,2]
[405624028,1771228238532,-500.0,0.00016428,2]
[405624030,1771228238544,-22.02953575,0.00016428,2]
[405624270,1771228240863,-462.53873928,0.00016428,2]
[405624271,1771228240874,-15.43172497,0.00016428,2]
[405624272,1771228240883,-338.63255985,0.00016428,2]
[405624576,1771228243945,-161.36744015,0.00016428,2]
[405624578,1771228243955,-328.99168786,0.00016428,2]
[405624580,1771228243965,-374.21229613,0.00016428,2]
[405624585,1771228243988,-88.55096013,0.00016428,2]
[405624588,1771228243997,-469.61863975,0.00016428,2]
[405624678,1771228246217,-388.66220874,0.00016264,2]
[405624679,1771228246227,-30.38136025,0.00016428,2]
[405624680,1771228246236,-500.0,0.00016428,2]
[405624681,1771228246245,-500.0,0.00016428,2]
[405624682,1771228246255,-200.0,0.00016428,2]
[405624683,1771228246264,-229.51325981,0.00016429,2]
[405624684,1771228246273,-1023.45130029,0.0001643,2]
[405624695,1771228338033,500.0,0.00014402,2]
[405624696,1771228338510,500.0,0.00014494,2]
[405624697,1771228338994,500.0,0.00014982,2]
[405624701,1771228339942,525.18839462,0.00013686,2]
[405624702,1771228349354,500.0,0.00014039,2]
[405624703,1771228350707,500.0,0.00013038,2]
[405624704,1771228453460,172.9639704,0.00012345,2]
[405624706,1771228645218,1375.74431102,0.00015,2]
[405624707,1771228648267,977.09434916,0.00013429,2]
[405624711,1771229118794,1032.93905023,0.00015,2]
[405624712,1771229236131,-187.276998,0.00015119,2]
[405624713,1771229236154,-233.82043496,0.00015164,2]
[405624714,1771229236175,-300.0,0.00015293,2]
[405624715,1771229236194,-322.27164099,0.00015294,2]
[405624716,1771229243076,-177.72835901,0.00015294,2]
[405624717,1771229243096,-475.034141,0.00015294,2]
[405624718,1771229254909,205.6176297,0.00014924,2]
[405624719,1771229255513,846.44406252,0.00014972,2]
[405624720,1771229290249,985.89371504,0.00015,2]
[405624721,1771229345073,-3516.66111489,0.00015195,2]
[405624722,1771229345093,-300.0,0.00015292,2]
[405624723,1771229345117,-500.0,0.00015293,2]
[405624724,1771229345141,-500.0,0.00015293,2]
[405624725,1771229345162,-183.06188322,0.00015293,2]
[405624726,1771229345182,-500.0,0.00015293,2]
[405624727,1771229345202,-500.0,0.00015293,2]
[405624728,1771229345224,-500.0,0.00015293,2]
[405624729,1771229345246,-500.0,0.00015293,2]
[405624730,1771229345267,-500.0,0.00015293,2]
[405624731,1771229345287,-500.0,0.00015293,2]
[405624732,1771229345309,-500.0,0.00015293,2]
[405624733,1771229345328,-620.52321546,0.00015293,2]
[405624734,1771229345349,-500.0,0.00015293,2]
[405624735,1771229345369,-500.0,0.00015293,2]
[405624736,1771229345391,-500.0,0.00015293,2]
[405624737,1771229345411,-500.0,0.00015293,2]
[405624738,1771229345432,-500.0,0.00015293,2]
[405624739,1771229345453,-500.0,0.00015293,2]
[405624740,1771229345474,-500.0,0.00015293,2]
[405624741,1771229345495,-500.0,0.00015293,2]
[405624742,1771229345515,-500.0,0.00015293,2]
[405624743,1771229345537,-500.0,0.00015293,2]
[405624744,1771229345557,-500.0,0.00015293,2]
[405624745,1771229345578,-500.0,0.00015293,2]
[405624746,1771229345598,-500.0,0.00015293,2]
[405624747,1771229345618,-336.96524981,0.00015293,2]
[405624748,1771229345640,-500.0,0.00015293,2]
[405624749,1771229345661,-500.0,0.00015293,2]
[405624750,1771229345683,-500.0,0.00015293,2]
[405624751,1771229345704,-500.0,0.00015293,2]
[405624752,1771229345725,-500.0,0.00015293,2]
[405624753,1771229345746,-500.0,0.00015293,2]
[405624754,1771229345888,-500.0,0.00015293,2]
[405624755,1771229345909,-500.0,0.00015293,2]
[405624756,1771229345931,-500.0,0.00015293,2]
[405624757,1771229345953,-500.0,0.00015293,2]
[405624758,1771229345976,-500.0,0.00015293,2]
[405624759,1771229345998,-644.56915765,0.00015293,2]
[405624760,1771229346021,-205.10288631,0.00015293,2]
[405624761,1771229346043,-400.0,0.00015293,2]
[405624762,1771229346065,-500.0,0.00015293,2]
[405624763,1771229346087,-500.0,0.00015293,2]
[405624764,1771229346111,-500.0,0.00015293,2]
[405624765,1771229346132,-500.0,0.00015293,2]
[405624766,1771229346154,-500.0,0.00015293,2]
[405624767,1771229346175,-500.0,0.00015293,2]
[405624768,1771229346199,-532.40538383,0.00015293,2]
[405624769,1771229346219,-500.0,0.00015293,2]
[405624770,1771229346240,-500.0,0.00015293,2]
[405624771,1771229346260,-532.68724826,0.00015293,2]
[405624772,1771229346281,-500.0,0.00015293,2]
[405624773,1771229346300,-16866.97340027,0.00015293,2]
[405624774,1771229346320,-300.0,0.00015294,2]
[405624775,1771229346339,-300.0,0.00015294,2]
[405624776,1771229346358,-300.0,0.00015294,2]
[405624777,1771229346379,-1200.0,0.00015294,2]
[405624778,1771229346398,-500.0,0.00015295,2]
[405624779,1771229346418,-8473.52625645,0.00015297,2]
[405624780,1771229354116,-1351.42,0.00015297,2]
[405624781,1771229364103,-872.71995535,0.00015297,2]
[405624782,1771229364127,-182.61,0.000153,2]
[405624783,1771229364146,-160.0,0.00015325,3]
[405624784,1771229364168,-300.0,0.00015602,2]
[405624785,1771229364189,-243.89034004,0.00015602,2]
[405624812,1771229432347,-300.0,0.00015601,2]
[405624814,1771229432357,-56.10965996,0.00015602,2]
[405624816,1771229432367,-300.0,0.00015602,2]
[405624820,1771229432377,-300.0,0.00015602,2]
[405624823,1771229432386,-300.0,0.00015602,2]
[405624827,1771229432395,-300.0,0.00015602,2]
[405624830,1771229432404,-300.0,0.00015602,2]
[405624832,1771229432413,-300.0,0.00015602,2]
[405624835,1771229432424,-300.0,0.00015602,2]
[405624836,1771229432433,-300.0,0.00015602,2]
[405624838,1771229432443,-300.0,0.00015602,2]
[405624839,1771229432452,-113.02667884,0.00015602,2]
[405624840,1771229432463,-186.97332116,0.00015602,2]
[405624841,1771229432472,-300.0,0.00015602,2]
[405624842,1771229432482,-300.0,0.00015602,2]
[405624843,1771229432492,-300.0,0.00015602,2]
[405624844,1771229432502,-600.0,0.00015912,2]
[405624845,1771229432512,-160.0,0.00016051,4]
[405624846,1771229432520,-3112.592631,0.00016087,2]
[405624847,1771229432530,-2611.8700927,0.00016214,2]
[405624848,1771229432539,-1061.7393864,0.00016214,2]
[405624849,1771229432548,-297.42038294,0.00016428,2]
[405624850,1771229432558,-339.56910007,0.00016428,2]
[405624851,1771229432568,-6800.57869971,0.0001643,2]
[405624852,1771229432578,-500.0,0.00016438,2]
[405624853,1771229432587,-3463.21,0.00016438,2]
[405624854,1771229432596,-500.0,0.00016438,2]
[405624855,1771229432605,-500.0,0.00016438,2]
[405624856,1771229432615,-500.0,0.00016438,2]
[405624857,1771229432624,-500.0,0.00016438,2]
[405624858,1771229432634,-1922.44,0.00016438,2]
[405624859,1771229432643,-500.0,0.00016438,2]
[405624860,1771229432653,-500.0,0.00016438,2]
[405624861,1771229432665,-500.0,0.00016438,2]
[405624862,1771229432674,-1000.0,0.00016438,2]
[405624863,1771229432684,-500.0,0.00016438,2]
[405624864,1771229432694,-645.70482151,0.00016438,2]
[405624865,1771229432704,-571.46660127,0.00016438,2]
[405624866,1771229432713,-1662.2,0.00016438,2]
[405624867,1771229432723,-518.4488623,0.00016438,2]
[405624868,1771229432732,-500.0,0.00016438,2]
[405624869,1771229432741,-1358.93,0.00016438,2]
[405624870,1771229432751,-381.62699269,0.00016438,2]
[405624871,1771229432760,-500.0,0.00016438,2]
[405624872,1771229432769,-560.68,0.00016438,2]
[405624873,1771229432779,-206.19707606,0.00016438,2]
[405624874,1771229432788,-623.96307831,0.00016438,2]
[405624875,1771229432797,-515.7124552,0.00016438,2]
[405624876,1771229432806,-510.97990167,0.00016438,2]
[405624877,1771229432815,-500.0,0.00016438,2]
[405624878,1771229432824,-500.0,0.00016438,2]
[405624879,1771229432834,-500.0,0.00016438,2]
[405624880,1771229432843,-500.0,0.00016438,2]
[405624881,1771229432853,-500.0,0.00016438,2]
[405624882,1771229432973,-500.0,0.00016438,2]
[405624883,1771229432983,-500.0,0.00016438,2]
[405624884,1771229432992,-228.70660753,0.00016438,2]
[405624885,1771229433001,-500.0,0.00016438,2]
[405624886,1771229433010,-500.0,0.00016438,2]
[405624887,1771229433019,-500.0,0.00016438,2]
[405624888,1771229433029,-500.0,0.00016438,2]
[405624889,1771229433038,-500.0,0.00016438,2]
[405624890,1771229433047,-500.0,0.00016438,2]
[405624891,1771229433057,-558.35946778,0.00016438,2]
[405624892,1771229433066,-500.0,0.00016438,2]
[405624893,1771229433075,-623.25694021,0.00016438,2]
[405624894,1771229433084,-2835.49,0.00016438,2]
[405624895,1771229433094,-546.10942813,0.00016438,2]
[405624896,1771229433103,-517.6,0.00016438,2]
[405624897,1771229433112,-500.0,0.00016438,2]
[405624898,1771229433122,-562.57667342,0.00016438,2]
[405624899,1771229433132,-500.0,0.00016438,2]
[405624900,1771229433147,-1000.0,0.00016438,2]
[405624901,1771229433157,-526.36,0.00016438,2]
[405624902,1771229433167,-699.13,0.00016438,2]
[405624903,1771229433178,-242.13764149,0.00016438,2]
[405624904,1771229433188,-500.0,0.00016438,2]
[405624905,1771229433198,-500.0,0.00016438,2]
[405624906,1771229433208,-500.0,0.00016438,2]